bitfinex/quotes_ETHUSD_20260305
["timestamp","ask_amount","ask_price","bid_price","bid_amount"]
[1772711204814,4.25775193,2136.8,2136.2,4.46433755]
[1772711204815,3.75875193,2136.8,2136.2,4.46433755]
[1772711205117,4.92873825,2136.8,2136.2,4.46433755]
[1772711205321,4.92873825,2136.8,2136.3,1.17024762]
[1772711205322,3.75875193,2136.8,2136.3,1.17024762]
[1772711206007,4.92873598,2136.8,2136.3,1.17024762]
[1772711206422,3.75875193,2136.8,2136.3,1.17024762]
[1772711206624,4.92872674,2136.8,2136.3,1.17024762]
[1772711206824,3.75875193,2136.8,2136.3,1.17024762]
[1772711207001,0.001,2136.6,2136.3,5.63458517]
[1772711207434,0.001,2136.6,2136.4,4.46433755]
[1772711208026,0.001,2136.9,2136.4,4.46433755]
[1772711209219,4.6184118,2136.9,2136.3,1.17024762]
[1772711209551,5.78834038,2136.9,2136.3,5.52237077]
[1772711209736,1.17092858,2136.9,2136.3,5.52237077]
[1772711210453,4.6174118,2136.8,2136.2,1.17026277]
[1772711211652,5.78740263,2136.8,2136.1,9.03339438]
[1772711212153,4.6174118,2136.7,2136.1,9.03339438]
[1772711213266,4.6174118,2136.7,2136.1,12.84339438]
[1772711214324,5.78744217,2136.7,2136.1,12.84339438]
[1772711214732,4.6174118,2136.7,2136.1,12.84339438]
[1772711214934,5.78744439,2136.7,2136.1,12.84339438]
[1772711215134,4.6174118,2136.7,2136.1,12.84339438]
[1772711215452,4.6174118,2136.7,2136.2,4.35212315]
[1772711215751,1.17000672,2136.8,2136.2,4.35212315]
[1772711216054,4.6174118,2136.8,2136.3,1.17024762]
[1772711216756,0.001,2136.9,2136.4,4.35212315]
[1772711216947,4.6184118,2136.9,2136.3,1.17024762]
[1772711217465,4.6184118,2136.9,2136.2,9.33239159]
[1772711217639,4.6184118,2136.9,2136.2,4.98026844]
[1772711219842,4.6174118,2136.7,2136.2,4.98026844]
[1772711220050,4.6174118,2136.7,2136.2,3.81]
[1772711220372,4.6174118,2136.7,2136.5,0.0011]
[1772711220573,4.6184118,2136.7,2136.5,0.0011]
[1772711221068,0.001,2136.7,2136.5,0.0011]
[1772711221991,0.001,2136.9,2136.5,4.35322315]
[1772711222265,0.001,2136.9,2136.6,4.35212315]
[1772711223070,0.001,2137.4,2136.6,4.39892648]
[1772711223442,1.17065341,2137.4,2136.6,4.39892648]
[1772711223679,5.78806521,2137.4,2136.6,4.35212315]
[1772711223973,5.78806521,2137.4,2136.8,4.35212315]
[1772711224173,4.6184118,2137.4,2136.8,4.35212315]
[1772711224573,0.001,2137.4,2136.8,4.35212315]
[1772711225568,1.17064919,2137.4,2136.8,4.35212315]
[1772711225960,0.001,2137.4,2136.9,1.16991904]
[1772711226180,0.001,2137.4,2136.9,5.52204219]
[1772711226501,0.001,2137.4,2137.0,4.35212315]
[1772711227210,4.6184118,2137.4,2136.9,1.16991904]
[1772711227367,4.6184118,2137.4,2136.9,5.52204219]
[1772711227688,0.001,2137.4,2136.9,5.52204219]
[1772711227860,0.001,2137.4,2137.0,4.35212315]
[1772711228970,0.001,2137.4,2137.0,5.52194084]
[1772711230096,0.001,2137.4,2137.1,4.35212315]
[1772711230694,0.001,2137.4,2137.0,1.16981769]
[1772711230897,0.001,2137.4,2136.8,1.16993342]
[1772711230898,4.6184118,2137.4,2136.8,1.16993342]
[1772711231195,5.78711188,2137.3,2136.8,1.16993342]
[1772711231565,0.001,2137.4,2136.9,4.35212315]
[1772711231971,0.001,2137.4,2136.8,1.16993342]
[1772711231972,0.001,2137.4,2137.0,4.39891772]
[1772711233414,0.001,2137.4,2137.1,1.16980955]
[1772711233713,0.001,2137.2,2137.1,1.16980955]
[1772711234314,0.001,2137.4,2137.1,1.21660193]
[1772711236919,0.001,2137.4,2137.1,1.16980955]
[1772711237406,0.001,2137.4,2137.2,0.04679019]
[1772711237606,0.001,2137.4,2137.3,1.16970008]
[1772711239026,0.001,2137.4,2137.0,5.52305788]
[1772711239522,0.001,2137.4,2137.1,4.45296752]
[1772711240230,0.001,2137.4,2137.2,4.45296752]
[1772711240797,0.001,2137.4,2137.1,5.62276064]
[1772711241116,0.001,2137.4,2137.1,1.16979312]
[1772711241701,0.001,2137.4,2137.1,5.62276064]
[1772711241907,0.001,2137.4,2137.2,4.49975771]
[1772711242095,5.88066008,2137.8,2137.3,1.16970008]
[1772711242410,5.88066008,2137.8,2137.2,1.16971464]
[1772711242815,5.88066008,2137.8,2137.1,1.16976398]
[1772711243519,5.88066008,2137.8,2137.0,5.62389448]
[1772711243824,5.88066008,2137.8,2137.0,5.62392716]
[1772711244202,5.88066008,2137.8,2137.1,4.45296752]
[1772711244414,5.88066008,2137.8,2137.2,0.04679019]
[1772711245731,5.88066008,2137.8,2137.3,0.0011]
[1772711245930,0.001,2137.6,2137.3,0.0011]
[1772711246604,0.001,2137.6,2137.3,4.32975267]
[1772711247439,0.001,2137.6,2137.4,0.04678581]
[1772711247838,0.001,2137.6,2137.4,4.37543848]
[1772711248831,0.001,2137.6,2137.4,5.54507911]
[1772711249259,0.001,2137.6,2137.4,4.32865267]
[1772711249954,0.001,2137.6,2137.4,5.49829442]
[1772711250177,0.001,2137.6,2137.4,5.49829667]
[1772711250328,4.49538476,2138.1,2137.5,4.32865267]
[1772711251273,5.66464933,2138.1,2137.7,4.32865267]
[1772711251841,5.66465015,2138.1,2137.7,4.32865267]
[1772711252080,5.66465372,2138.1,2137.7,4.32865267]
[1772711252781,4.49538476,2138.1,2137.7,4.32865267]
[1772711253282,4.49538476,2138.0,2137.5,1.16955295]
[1772711253593,4.49538476,2138.0,2137.6,4.32865267]
[1772711253882,1.16924807,2138.2,2137.7,4.32865267]
[1772711253883,4.49538476,2138.2,2137.7,4.32865267]
[1772711254674,4.49538476,2138.4,2137.8,4.32865267]
[1772711254971,3.29506524,2139.0,2137.7,3.81]
[1772711254972,4.49538476,2138.7,2138.1,4.32865267]
[1772711255277,5.6643226,2138.7,2138.1,5.49787133]
[1772711256490,4.49538476,2138.7,2138.2,4.32865267]
[1772711256692,4.6753949,2138.9,2138.2,4.32865267]
[1772711256693,4.49538476,2138.9,2138.2,4.32865267]
[1772711257292,5.66422056,2138.9,2138.4,4.32865267]
[1772711257854,1.50672847,2139.1,2138.4,4.32865267]
[1772711258683,0.33797587,2139.1,2138.4,4.32865267]
[1772711258858,0.001,2139.2,2138.4,4.32865267]
[1772711259179,5.6650525,2139.2,2138.4,4.32865267]
[1772711259398,5.6650525,2139.2,2138.4,1.16905373]
[1772711259399,4.49538476,2139.1,2138.4,1.16905373]
[1772711260294,4.49538476,2139.1,2138.3,5.49776318]
[1772711260795,4.49538476,2139.0,2138.3,4.32865267]
[1772711260975,4.49538476,2139.0,2138.1,5.49791363]
[1772711261169,4.49538476,2139.0,2138.2,4.32865267]
[1772711261692,4.49538476,2138.8,2138.3,1.16915306]
[1772711261894,4.49538476,2138.8,2138.2,4.32865267]
[1772711262316,4.49538476,2138.8,2138.2,5.49785592]
[1772711262516,4.49538476,2138.8,2138.0,4.67589799]
[1772711263910,4.49538476,2138.8,2138.0,3.50658936]
[1772711263911,4.49538476,2138.6,2138.0,3.50658936]
[1772711264097,4.49538476,2138.6,2138.0,1.75158936]
[1772711265914,4.49538476,2138.4,2138.0,1.75158936]
[1772711266100,4.49538476,2138.4,2138.0,1e-08]
[1772711267589,4.49538476,2138.4,2137.6,0.0011]
[1772711268104,4.49538476,2138.2,2137.6,0.0011]
[1772711270112,5.62467573,2138.1,2137.6,1.17063592]
[1772711270516,5.62467573,2138.1,2137.9,0.0011]
[1772711271225,1.794,2138.3,2137.9,0.0011]
[1772711271420,2.96315963,2138.3,2137.9,0.0011]
[1772711272200,1.16915963,2138.3,2137.9,0.0011]
[1772711272397,1.17012574,2138.4,2137.9,4.6044407]
[1772711273118,4.45541331,2138.3,2137.9,0.0011]
[1772711274205,0.001,2138.4,2137.9,0.04787487]
[1772711274525,0.001,2138.4,2138.0,4.6033407]
[1772711274716,0.001,2138.4,2138.1,0.04677049]
[1772711275313,1.17010064,2138.4,2138.0,4.65011338]
[1772711275495,4.45541331,2138.3,2137.9,0.0011]
[1772711276101,5.6246111,2138.3,2137.9,0.0011]
[1772711276992,1.16919779,2138.3,2137.9,4.65121557]
[1772711277194,0.001,2138.4,2137.9,4.65121557]
[1772711277391,1.17009973,2138.4,2137.9,4.6044407]
[1772711277594,0.001,2138.4,2138.0,0.04677268]
[1772711277820,0.001,2138.4,2137.9,0.0011]
[1772711277821,4.45541331,2138.3,2137.9,0.0011]
[1772711278140,0.001,2138.4,2138.0,1.16931711]
[1772711278341,0.001,2138.4,2138.1,4.6033407]
[1772711280030,4.45641331,2138.4,2138.0,3.81]
[1772711280328,1.16915306,2138.3,2138.0,3.81]
[1772711281936,5.62456637,2138.3,2138.0,3.81]
[1772711282141,5.62456637,2138.3,2137.9,0.0011]
[1772711282333,4.45541331,2138.2,2137.9,0.0011]
[1772711283138,0.001,2138.1,2137.9,0.0011]
[1772711284129,4.45641331,2138.1,2137.9,0.0011]
[1772711284331,5.62572065,2138.1,2137.9,0.0011]
[1772711284713,1.17030734,2138.1,2137.9,0.0011]
[1772711285232,5.62572065,2138.1,2137.9,0.0011]
[1772711287232,7.42261153,2138.3,2137.9,0.0011]
[1772711287534,4.45541331,2138.2,2137.9,0.0011]
[1772711287741,4.45541331,2138.2,2137.6,0.0011]
[1772711288834,4.45541331,2138.0,2137.6,0.0011]
[1772711290038,1.16926242,2138.1,2137.6,4.6044407]
[1772711290340,1.16926242,2138.1,2137.7,4.65011994]
[1772711290638,1.16926242,2138.1,2137.7,0.04677924]
[1772711290936,5.62467573,2138.1,2137.6,0.0011]
[1772711291141,4.45541331,2138.0,2137.6,0.0011]
[1772711292333,6.47584662,2138.2,2137.6,5.77395051]
[1772711292334,5.62462659,2138.2,2137.6,5.77395051]
[1772711292539,1.8,2138.1,2137.7,4.6033407]
[1772711292742,1.8,2138.1,2137.8,0.04677706]
[1772711293227,7.42471883,2138.1,2137.6,0.0011]
[1772711293544,7.42471883,2138.1,2137.6,4.6044407]
[1772711294128,7.42471883,2138.1,2137.6,0.0011]
[1772711294330,7.42471883,2138.1,2137.6,1.1706304]
[1772711294522,7.42471883,2138.1,2137.6,1.21741183]
[1772711294722,1.16924978,2138.2,2137.7,4.6033407]
[1772711294941,1.802,2138.2,2137.7,4.6033407]
[1772711295159,1.16917321,2138.3,2137.9,4.6033407]
[1772711296034,2.97213966,2138.4,2137.9,5.77270946]
[1772711296228,2.75844777,2138.3,2137.9,5.77270946]
[1772711296432,2.75844777,2138.3,2137.9,1.16936876]
[1772711296635,1.803,2138.4,2138.0,4.6033407]
[1772711296840,2.97210952,2138.4,2138.0,4.6033407]
[1772711297023,2.97210952,2138.4,2137.8,5.77383789]
[1772711297223,2.97210952,2138.4,2137.9,4.6033407]
[1772711297641,2.97210952,2138.4,2137.8,4.98049719]
[1772711297642,7.42752283,2138.4,2137.8,3.8111]
[1772711298352,7.42752283,2138.4,2137.8,9.58386416]
[1772711298649,7.42752283,2138.4,2137.9,4.6033407]
[1772711298650,2.97210952,2138.4,2137.9,4.6033407]
[1772711299352,2.97210952,2138.4,2137.9,5.77266751]
[1772711299566,2.97209868,2138.4,2138.0,4.51306321]
[1772711299853,1.803,2138.4,2138.0,4.51306321]
[1772711300047,2.97210456,2138.4,2138.0,4.51306321]
[1772711300244,1.17010456,2138.4,2138.0,4.51306321]
[1772711300645,0.001,2138.4,2138.0,4.51306321]
[1772711300954,1.17010311,2138.4,2138.0,4.51306321]
[1772711302127,1.17010311,2138.4,2138.0,5.68237404]
[1772711302455,1.17010311,2138.4,2138.0,4.51306321]
[1772711303558,1.17010311,2138.4,2137.8,4.51416321]
[1772711303559,5.9205381,2138.4,2137.8,4.51416321]
[1772711304056,4.75043499,2138.3,2137.8,0.0011]
[1772711305753,4.74150605,2138.1,2137.8,0.0011]
[1772711306058,1.808,2138.1,2137.8,0.0011]
[1772711306553,4.67780373,2138.4,2137.8,4.51416321]
[1772711306554,1.1701326,2138.4,2137.8,4.51416321]
[1772711306754,7.71517881,2138.4,2137.8,4.51416321]
[1772711307130,7.71517881,2138.4,2137.8,0.0011]
[1772711307131,4.63511528,2138.3,2137.8,0.0011]
[1772711307739,1.16920774,2138.2,2137.8,0.0011]
[1772711307951,0.001,2138.4,2138.0,0.0011]
[1772711308133,1.17013419,2138.4,2138.0,4.55354161]
[1772711308459,0.001,2138.2,2138.0,0.0011]
[1772711309560,4.63511528,2138.1,2137.8,0.0011]
[1772711309740,1.16931108,2138.1,2137.8,0.0011]
[1772711310459,2.97931108,2138.1,2137.8,0.0011]
[1772711311135,7.61442636,2138.1,2137.8,0.0011]
[1772711312133,4.63511528,2138.0,2137.6,0.0011]
[1772711313969,1.16937181,2137.9,2137.6,0.0011]
[1772711315068,1.813,2138.1,2137.7,4.55244161]
[1772711315236,1.17025039,2138.2,2137.7,4.55244161]
[1772711315439,1.1702187,2138.2,2137.8,4.55244161]
[1772711315970,1.1702187,2138.2,2137.6,4.55354161]
[1772711316157,1.1702187,2138.2,2137.8,4.55244161]
[1772711316358,0.001,2138.2,2137.8,4.55244161]
[1772711317960,0.001,2138.2,2137.9,5.72181342]
[1772711318145,0.001,2138.2,2137.9,4.55244161]
[1772711318549,0.001,2138.2,2137.7,4.67782256]
[1772711318550,4.63611528,2138.2,2137.7,4.55244161]
[1772711318744,0.001,2138.2,2137.7,5.72190072]
[1772711319339,0.001,2138.2,2137.8,4.55244161]
[1772711319542,1.17014292,2138.4,2137.8,4.55244161]
[1772711320267,0.001,2138.4,2137.9,1.16937181]
[1772711320464,0.001,2138.0,2137.9,5.72181342]
[1772711320652,0.001,2138.4,2137.9,5.72181342]
[1772711320653,0.001,2138.4,2138.0,4.55244161]
[1772711321966,0.001,2138.4,2137.9,1.16937181]
[1772711321967,4.63611528,2138.4,2137.8,5.72292462]
[1772711322355,1.16915306,2138.3,2137.8,5.722965]
[1772711322541,1.16915306,2138.3,2137.8,4.55354161]
[1772711322943,1.16915306,2138.3,2137.8,5.72294605]
[1772711324040,1.16915306,2138.3,2137.8,5.72295803]
[1772711325470,1.16915306,2138.3,2137.9,4.55244161]
[1772711326042,1.17014349,2138.4,2137.9,4.55244161]
[1772711327940,1.17014349,2138.4,2137.9,1.16935043]
[1772711328169,1.17014349,2138.4,2137.8,0.0011]
[1772711328170,4.63511528,2138.3,2137.8,0.0011]
[1772711329772,4.63511528,2138.3,2137.8,1.17052622]
[1772711329946,4.63511528,2138.3,2137.9,4.44214727]
[1772711329947,1.16919696,2138.3,2137.9,4.44214727]
[1772711331941,1.16919696,2138.3,2138.0,0.0011]
[1772711332265,0.001,2138.1,2138.0,0.0011]
[1772711333952,4.88465564,2138.1,2138.0,0.0011]
[1772711334143,6.05391806,2138.1,2138.0,0.0011]
[1772711335382,1.17026242,2138.1,2138.0,0.0011]
[1772711335966,6.05391806,2138.1,2137.8,0.0011]
[1772711337565,6.05391806,2138.1,2137.3,0.0011]
[1772711337566,4.88365564,2137.7,2137.3,0.0011]
[1772711337785,4.88365564,2137.5,2136.8,0.0011]
[1772711337959,4.88365564,2137.3,2136.8,0.0011]
[1772711338279,4.88365564,2137.3,2136.5,0.0011]
[1772711338280,4.88365564,2137.1,2136.5,0.0011]
[1772711338456,5.75662057,2137.2,2136.5,0.0011]
[1772711338457,4.88365564,2136.9,2136.5,0.0011]
[1772711339282,4.88365564,2136.7,2136.5,0.0011]
[1772711340494,2.99690302,2137.0,2136.5,0.0011]
[1772711340653,2.99690302,2137.0,2136.6,0.231398]
[1772711340992,6.05331417,2137.4,2136.6,4.44214727]
[1772711341200,6.05331417,2137.4,2136.7,4.67354527]
[1772711341373,6.05331417,2137.4,2136.7,4.44214727]
[1772711343173,6.05331417,2137.4,2136.8,0.231398]
[1772711343174,1.16965853,2137.4,2136.8,0.231398]
[1772711343375,1.16954192,2137.6,2136.8,4.67354527]
[1772711343592,1.16954192,2137.6,2137.0,4.44214727]
[1772711344387,6.05319756,2137.6,2137.1,0.231398]
[1772711344602,6.05319756,2137.6,2136.9,0.230298]
[1772711344776,6.05319756,2137.6,2136.9,0.231398]
[1772711344972,6.05319756,2137.6,2136.9,0.230298]
[1772711345206,1.16954192,2137.6,2137.0,4.44324727]
[1772711345404,1.16952117,2137.7,2137.1,0.0011]
[1772711345577,1.16952117,2137.7,2137.1,0.231398]
[1772711345906,1.16952117,2137.7,2137.2,0.0011]
[1772711346392,6.05312439,2137.8,2137.2,0.0011]
[1772711346593,6.05312439,2137.8,2137.3,0.231398]
[1772711346796,2.99939829,2137.9,2137.2,4.67354527]
[1772711347307,7.88305393,2137.9,2137.2,4.67354527]
[1772711348176,7.88305393,2137.9,2137.2,4.44324727]
[1772711348375,7.88305393,2137.9,2137.2,4.44214727]
[1772711348778,7.88305393,2137.9,2137.3,4.67354527]
[1772711348973,7.88305393,2137.9,2137.3,4.44214727]
[1772711350307,6.05305393,2137.9,2137.3,5.61184687]
[1772711350679,1.16939829,2137.9,2137.4,0.231398]
[1772711351724,6.05305393,2137.9,2137.4,0.231398]
[1772711352824,6.05305393,2137.9,2137.5,0.0011]
[1772711353382,1.16939829,2137.9,2137.6,0.231398]
[1772711353920,6.05305393,2137.9,2137.6,0.231398]
[1772711354087,2.32567211,2138.0,2137.4,4.44214727]
[1772711354599,7.20932775,2138.0,2137.4,4.44214727]
[1772711355403,4.88365564,2137.9,2137.2,5.61186587]
[1772711355585,0.001,2137.7,2137.2,5.61186587]
[1772711356107,0.001,2137.7,2137.1,4.67913629]
[1772711356108,4.88465564,2137.7,2137.0,8.25324727]
[1772711356311,4.88465564,2137.7,2137.0,9.42311061]
[1772711356513,4.88465564,2137.7,2137.0,8.25324727]
[1772711356685,4.88465564,2137.7,2137.0,4.44324727]
[1772711357594,1.16953592,2137.6,2137.0,4.44324727]
[1772711357795,1.16953592,2137.6,2137.0,5.61310495]
[1772711358012,1.16953592,2137.6,2137.0,4.44324727]
[1772711360213,5.67737075,2137.6,2137.0,4.44324727]
[1772711360916,0.001,2137.7,2137.0,4.44324727]
[1772711361116,1.17052232,2137.7,2137.1,4.70147189]
[1772711362016,0.001,2137.7,2137.1,4.70147189]
[1772711362313,0.001,2137.7,2137.3,4.70147189]
[1772711364001,4.50883483,2137.7,2137.1,5.87124475]
[1772711364390,1.16953592,2137.6,2137.1,5.87124475]
[1772711365402,1.16953592,2137.6,2137.1,4.70147189]
[1772711365920,1.16953592,2137.6,2137.1,5.87127947]
[1772711366407,1.16953592,2137.6,2137.1,4.70147189]
[1772711366722,1.16953592,2137.6,2137.1,4.7498862]
[1772711367605,1.17050882,2137.7,2137.2,4.7509862]
[1772711367821,0.001,2137.5,2137.2,4.7509862]
[1772711371122,4.63604632,2137.5,2137.2,0.0011]
[1772711373719,1.16964536,2137.4,2137.2,0.0011]
[1772711373899,1.17063065,2137.5,2137.2,4.7509862]
[1772711377421,0.001,2137.5,2137.2,4.7509862]
[1772711380026,0.001,2137.5,2137.4,0.0011]
[1772711380825,4.63604632,2137.5,2137.4,0.0011]
[1772711381021,4.63604632,2137.5,2137.2,0.0011]
[1772711381217,4.63504632,2137.3,2137.2,0.0011]
[1772711381419,4.63504632,2137.2,2136.8,0.0011]
[1772711381618,4.63504632,2137.0,2136.8,0.0011]
[1772711382010,5.80496536,2136.9,2136.8,0.0011]
[1772711383611,4.67896104,2137.3,2136.8,0.0011]
[1772711383612,5.8047464,2137.3,2136.8,4.7509862]
[1772711383827,1.16964759,2137.4,2136.9,4.7531862]
[1772711384331,4.63504632,2137.4,2136.9,4.7531862]
[1772711384702,4.63504632,2137.4,2137.0,0.0022]
[1772711386205,5.80472877,2137.4,2137.0,0.0022]
[1772711386400,5.80472877,2137.4,2136.9,0.0011]
[1772711386401,0.001,2137.5,2137.1,4.7531862]
[1772711386621,0.001,2137.5,2137.1,4.7498862]
[1772711386821,0.001,2137.5,2137.2,0.0033]
[1772711387104,0.001,2137.5,2137.2,4.7531862]
[1772711387908,1.17060351,2137.5,2137.2,0.0033]
[1772711388534,1.17060351,2137.5,2137.3,0.0022]
[1772711388918,0.001,2137.5,2137.4,0.0033]
[1772711389625,0.001,2137.5,2137.4,0.0011]
[1772711390639,0.001,2137.5,2137.1,8.26645668]
[1772711390822,0.001,2137.5,2137.3,0.0022]
[1772711391731,4.6511138,2137.5,2137.3,0.0022]
[1772711392117,0.001,2137.5,2137.3,0.0011]
[1772711395142,1.16940696,2137.9,2137.4,4.45645668]
[1772711395514,5.81952076,2137.9,2137.4,4.45645668]
[1772711396752,2.32566979,2138.0,2137.4,4.45645668]
[1772711396929,6.97578359,2138.0,2137.4,4.45645668]
[1772711397299,6.97578359,2138.0,2137.5,1.16959064]
[1772711397549,1.15631066,2138.0,2137.6,4.45645668]
[1772711398126,0.001,2138.1,2137.6,4.45645668]
[1772711399122,5.82038326,2138.1,2137.5,4.97959064]
[1772711399342,5.82038326,2138.1,2137.5,11.18904732]
[1772711399543,5.82038326,2138.1,2137.6,4.45645668]
[1772711399732,4.6511138,2138.1,2137.6,4.45645668]
[1772711400240,0.001,2138.1,2137.6,4.45645668]
[1772711401366,0.001,2138.4,2137.7,4.45645668]
[1772711401663,0.001,2138.4,2137.8,4.45645668]
[1772711403471,2.72359538,2138.8,2137.8,4.45645668]
[1772711403472,4.6501138,2138.9,2138.1,4.45645668]
[1772711403774,5.81884407,2139.1,2138.2,4.45645668]
[1772711405564,0.001,2139.2,2138.4,4.45645668]
[1772711406145,4.6501138,2139.1,2138.4,4.45645668]
[1772711406752,1.16967593,2139.2,2138.4,4.45645668]
[1772711407153,1.16966142,2139.2,2138.4,4.45645668]
[1772711407759,1.16966142,2139.2,2138.6,4.45645668]
[1772711408446,0.001,2139.2,2138.6,4.45645668]
[1772711409674,0.001,2139.2,2138.7,1.16893439]
[1772711409875,0.001,2139.2,2138.8,4.45645668]
[1772711410088,0.03360266,2139.3,2138.9,4.45645668]
[1772711410579,2.57691429,2139.9,2138.9,4.45645668]
[1772711410882,4.6501138,2139.8,2138.9,4.45645668]
[1772711411245,4.6501138,2139.8,2138.8,1.755]
[1772711411680,4.6501138,2139.6,2138.8,2.9238682]
[1772711411852,4.6501138,2139.6,2138.8,7.38032488]
[1772711412175,4.6501138,2139.6,2138.7,4.45645668]
[1772711413781,4.6501138,2139.4,2138.7,4.45645668]
[1772711413948,4.6501138,2139.4,2138.4,1.16906172]
[1772711414383,4.6501138,2139.4,2138.3,5.62556681]
[1772711414686,4.6501138,2139.4,2138.2,6.43273957]
[1772711414687,4.6501138,2139.4,2138.2,1.16918421]
[1772711415185,4.6501138,2139.4,2138.1,9.13348163]
[1772711415186,4.6501138,2139.4,2138.1,5.62569723]
[1772711415882,4.6501138,2139.2,2138.1,5.62569723]
[1772711416184,4.6501138,2139.2,2138.2,4.45645668]
[1772711416389,4.6501138,2139.2,2138.5,4.45645668]
[1772711417570,4.6501138,2139.2,2138.6,0.04675956]
[1772711417771,4.6501138,2139.2,2138.6,4.45645668]
[1772711417959,5.81882433,2139.2,2138.6,5.62539245]
[1772711419485,1.16863768,2139.3,2138.7,4.6100394]
[1772711420171,1.16863768,2139.3,2138.7,5.77893316]
[1772711420370,1.16863768,2139.3,2138.7,4.6100394]
[1772711420574,4.50177503,2139.2,2138.4,1.1701492]
[1772711420764,4.50177503,2139.2,2138.4,5.7801886]
[1772711420964,4.50177503,2139.2,2138.5,4.6100394]
[1772711421291,4.50177503,2139.2,2138.5,4.65680114]
[1772711421667,4.50177503,2139.2,2138.5,4.6100394]
[1772711422266,5.67043903,2139.2,2138.7,4.6100394]
[1772711422894,5.67043903,2139.2,2138.5,4.6100394]
[1772711422895,4.50177503,2139.1,2138.5,4.6100394]
[1772711423188,4.50177503,2139.1,2138.4,0.0011]
[1772711424395,4.50177503,2138.9,2138.4,0.0011]
[1772711426275,1.16887974,2138.8,2138.4,0.0011]
[1772711426473,4.50177503,2138.7,2138.4,0.0011]
[1772711426805,4.50177503,2138.7,2138.1,0.0011]
[1772711428487,4.6831692,2138.5,2138.1,0.0011]
[1772711428890,4.6831692,2138.5,2138.3,0.0011]
[1772711430500,1.16909839,2138.4,2138.3,0.0011]
[1772711430799,5.85226759,2138.4,2138.3,0.0011]
[1772711433211,5.85204894,2138.8,2138.3,4.42653686]
[1772711434205,4.67551898,2138.9,2138.3,4.42653686]
[1772711434206,1.16884362,2138.9,2138.3,4.42653686]
[1772711434409,5.85198106,2139.0,2138.3,4.42653686]
[1772711434579,5.85198106,2139.0,2138.4,4.42543686]
[1772711434776,6.54603115,2139.1,2138.4,4.42543686]
[1772711434777,1.16973815,2139.1,2138.4,4.42543686]
[1772711435120,1.1697309,2139.1,2138.4,4.42543686]
[1772711435513,4.6831692,2139.0,2138.3,0.0011]
[1772711435683,4.6831692,2139.0,2138.3,5.59566293]
[1772711435878,4.6831692,2139.0,2138.4,4.42543686]
[1772711436213,1.1697309,2139.1,2138.4,4.42543686]
[1772711436407,5.8529001,2139.1,2138.4,4.42543686]
[1772711436913,0.001,2139.1,2138.6,4.42543686]
[1772711439004,0.001,2139.1,2138.7,4.42543686]
[1772711441888,4.6841692,2139.1,2138.6,0.0011]
[1772711442193,0.001,2138.9,2138.6,4.42653686]
[1772711443087,0.001,2139.1,2138.7,4.42543686]
[1772711443819,0.001,2139.1,2138.7,5.59435895]
[1772711444189,4.6841692,2139.1,2138.6,4.42653686]
[1772711444389,4.6841692,2139.1,2138.6,0.0011]
[1772711445990,1.16877045,2139.0,2138.6,0.0011]
[1772711446829,4.6831692,2138.9,2138.4,0.0011]
[1772711448218,4.6831692,2138.7,2138.4,0.0011]
[1772711450413,1.16898905,2138.6,2138.4,0.0011]
[1772711450611,1.16881244,2139.0,2138.5,4.42016822]
[1772711450833,1.16972312,2139.1,2138.5,4.42016822]
[1772711451035,2.33853556,2139.1,2138.5,4.42016822]
[1772711451918,1.16981244,2139.1,2138.5,4.42016822]
[1772711452118,2.33853174,2139.1,2138.5,4.42016822]
[1772711452312,1.1697193,2139.1,2138.5,4.42016822]
[1772711452728,0.001,2139.1,2138.6,1.16898905]
[1772711452932,1.16881244,2139.0,2138.6,5.58915727]
[1772711453340,1.16881244,2139.0,2138.7,4.42016822]
[1772711455136,2.33758326,2139.0,2138.7,4.42016822]
[1772711455329,0.001,2138.8,2138.6,0.0011]
[1772711455800,0.001,2138.8,2138.6,5.59025612]
[1772711456310,0.001,2138.8,2138.7,4.42016822]
[1772711459037,0.001,2139.1,2138.8,4.42016822]
[1772711459418,1.16881244,2139.0,2138.8,8.23016822]
[1772711460022,0.12307526,2139.1,2139.0,4.42016822]
[1772711460338,1.16841273,2139.7,2139.0,4.42016822]
[1772711460914,0.12307526,2139.6,2139.0,4.42016822]
[1772711462214,0.12307526,2139.5,2139.2,4.42016822]
[1772711462415,1.29152131,2139.6,2139.2,4.42016822]
[1772711464444,1.29152131,2139.6,2139.1,1.16871581]
[1772711464445,4.81951406,2139.5,2138.9,4.42016822]
[1772711464744,4.81951406,2139.5,2138.9,5.58897756]
[1772711465531,4.81951406,2139.5,2139.0,3.81]
[1772711465737,4.81951406,2139.4,2139.0,3.81]
[1772711466044,4.81951406,2139.4,2138.7,4.67571759]
[1772711466045,4.6964388,2139.4,2138.7,4.42016822]
[1772711466247,1.16866118,2139.2,2138.8,3.81]
[1772711466552,1.16864813,2139.3,2138.9,4.42016822]
[1772711466749,0.12307526,2139.2,2138.9,4.42016822]
[1772711466951,0.12307526,2139.2,2139.1,0.0011]
[1772711467248,5.86608693,2139.3,2139.1,0.0011]
[1772711467456,0.12307526,2139.2,2139.1,0.0011]
[1772711468443,5.86608693,2139.3,2139.1,0.0011]
[1772711468651,0.12307526,2139.2,2139.1,0.0011]
[1772711470754,0.12307526,2139.2,2138.8,3.81]
[1772711470755,4.81951406,2139.1,2138.8,3.81]
[1772711470940,4.81951406,2139.1,2138.6,3.8111]
[1772711471139,0.12307526,2139.0,2138.6,3.8111]
[1772711471435,0.12307526,2139.0,2138.6,8.23126822]
[1772711471761,0.12307526,2139.0,2138.6,9.40025425]
[1772711473039,1.16961257,2139.3,2138.7,4.42016822]
[1772711473359,0.12307526,2139.2,2138.7,4.42016822]
[1772711474332,0.12307526,2139.2,2138.7,8.23016822]
[1772711474557,0.12307526,2139.2,2138.8,4.42016822]
[1772711475174,5.86605137,2139.3,2138.8,4.42016822]
[1772711475339,0.12307526,2139.2,2138.8,4.42016822]
[1772711476567,4.81951406,2139.2,2138.8,4.42016822]
[1772711476976,4.6964388,2139.0,2138.7,3.81]
[1772711477445,4.6964388,2139.0,2138.6,1.17008681]
[1772711477648,0.12307526,2138.9,2138.6,5.59025503]
[1772711478538,0.12307526,2138.9,2138.6,5.59025535]
[1772711478981,0.12307526,2138.9,2138.6,4.42126822]
[1772711479277,0.12307526,2138.9,2138.6,5.59025336]
[1772711479443,0.12307526,2138.9,2138.6,4.42126822]
[1772711479640,1.16877976,2139.0,2138.6,4.42126822]
[1772711479836,0.12307526,2138.9,2138.6,4.42126822]
[1772711480134,4.55153755,2138.9,2138.8,0.0011]